Cogmind - Beta 10.2 @@@ ROGUE MODE // 2020.12.26 @ 01:49:14 Player: Wyvric Result: Escaped! Performance ------------- Evolutions (9) 4500 Regions Visited (31) 6200 Robots Destroyed (309) 1545 Value Destroyed (18504) 18504 Prototype IDs (26) 520 Alien Tech Used (0) 0 Bonus (13491) 13491 TOTAL SCORE: 44760 Bonus ------- High Alert Combat Kills 913 Follower Combat Kills 4049 Entered Garrisons 1600 Used RIF Installer 4000 Network Hubs Disabled 200 Met R17 at Cetus 500 Scanned by Researcher 500 Win 3000 Friendly Fire -1271 Cogmind --------- Core Integrity 268/1600 Matter 300/300 Energy 16/100 System Corruption 31% Temperature Cool (0) Movement Core (50) Location To Epsilon Eridani Parts ------- > --- POWER (1) -------- (None) > --- PROPULSION (4) --- (None) > --- UTILITY (14) ----- (None) > --- WEAPON (6) ------- (None) > --- INVENTORY (4) ---- Relay Coupler [NC] (35) Relay Coupler [C] (44) Long-range Tractor Beam Advanced Remote Datajack Peak State ------------ > --- POWER ------------ Light Particle Reactor > --- PROPULSION ------- Centrium Leg Myomer Exoskeleton > --- UTILITY ---------- Advanced Coolant Injector High-capacity Storage Unit High-capacity Storage Unit High-capacity Storage Unit Experimental Energy Well Experimental Energy Well Experimental Signal Interpreter Advanced Targeting Computer Advanced Target Analyzer Improved Focal Shield Improved Hacking Suite Improved System Shield Relay Coupler [C] Relay Coupler [C] > --- WEAPON ----------- Phase Gun Heavy Machine Gun KE Penetrator KE Penetrator KE Penetrator Railgun > --- INVENTORY -------- Quantum Reactor Centrium Leg High-density Centrium Leg High-density Centrium Leg Compact Wheel Cooled Linear Gravjet Experimental Coolant Injector High-capacity Matter Pod Experimental Sensor Array Matter Filter Relay Coupler [NC] Relay Coupler [C] Relay Coupler [C] Relay Coupler [C] Relay Coupler [C] Relay Coupler [C] Long-range Tractor Beam Drone Bay Long-range Phase Cannon Linear Accelerator Advanced Remote Datajack Portable AFG [Rating: 184] Favorites ----------- Power Improved Deuterium Engine Engine Improved Deuterium Engine Power Core Nuclear Core Reactor Light Quantum Reactor Propulsion Light Treads Treads Light Treads Leg Flexi-carbon Leg Wheel Centrium Wheel Hover Unit Aerolev Unit Flight Unit Improved Flight Unit Utility High-capacity Storage Unit Device Advanced Terrain Scanner Storage High-capacity Storage Unit Processor Experimental Signal Interpreter Hackware Relay Coupler [NC] Protection Layered Light Armor Plating Weapon KE Penetrator Energy Gun Gamma Rifle Energy Cannon Heavy Neutron Cannon Ballistic Gun KE Penetrator Ballistic Cannon Linear Accelerator Launcher Proton Missile Launcher Special Weapon Improved Remote Datajack Impact Weapon Powered Hammer Slashing Weapon Axe Special Melee Weapon Improved Datajack Build | -11 -10 -10 -9 -9 -9 -8 -8 -8 -7 -7 -6 -6 -6 -5 -5 -4 -4 -4 -4 -4 -4 -4 -3 -3 -2 -2 -2 -2 -1 -1 -1 ------- Run | Scr Mat Min Mat Sto Gar Mat Gar Mat Fac Gar Fac Low Low Fac Gar Fac Gar Fac Ext Cet Arc Hub Res Gar Res Gar Res Tes Acc Gar Acc Slots Evolved 18 | . . . 2 . . 2 . . 2 . 2 . . 2 . 2 . . . . . . 2 . 2 . . . 2 . . Power . | . . . . . . . . . . . . . . . . . . . . . . . . . . . . . . . . Propulsion 2 | . . . . . . 2 . . . . . . . . . . . . . . . . . . . . . . . . . Utility 12 | . . . 2 . . . . . 2 . 2 . . . . 2 . . . . . . 2 . 2 . . . . . . Weapon 4 | . . . . . . . . . . . . . . 2 . . . . . . . . . . . . . . 2 . . Parts Attached 754 | 6 3 9 13 9 4 47 17 12 4 23 51 12 . 3 42 7 31 7 44 28 16 16 10 15 4 22 105 34 9 57 94 Power 33 | 1 . 1 1 . . 4 1 1 . . 2 . . . 1 . 3 . 1 2 1 . . . 1 1 4 2 1 3 2 Engine 10 | 1 . 1 1 . . 4 . . . . 1 . . . 1 . 1 . . . . . . . . . . . . . . Core 5 | . . . . . . . 1 1 . . 1 . . . . . . . 1 1 . . . . . . . . . . . Reactor 18 | . . . . . . . . . . . . . . . . . 2 . . 1 1 . . . 1 1 4 2 1 3 2 Propulsion 107 | 2 1 . 3 2 2 16 2 7 . . 5 4 . . 5 5 10 2 5 1 . . 1 1 . . 12 2 . 11 8 Treads 66 | 2 1 . 3 2 2 9 . 7 . . 5 3 . . . 5 3 1 2 1 . . 1 1 . . 10 . . . 8 Leg 36 | . . . . . . 5 2 . . . . 1 . . 5 . 7 . 2 . . . . . . . 2 2 . 10 . Wheel 3 | . . . . . . . . . . . . . . . . . . 1 1 . . . . . . . . . . 1 . Hover 1 | . . . . . . 1 . . . . . . . . . . . . . . . . . . . . . . . . . Flight 1 | . . . . . . 1 . . . . . . . . . . . . . . . . . . . . . . . . . Utility 339 | 1 . 6 4 1 . 13 3 2 4 5 30 6 . 1 18 2 13 5 22 17 7 9 8 8 3 12 52 17 2 21 47 Device 179 | . . 3 3 . . 2 . 1 2 1 14 5 . . 12 1 8 4 10 15 5 5 4 2 2 2 21 11 2 10 34 Storage 32 | 1 . 3 1 . . 8 . . 1 . 1 . . . . . . . 1 . . . . . . . 7 5 . 3 1 Processor 11 | . . . . . . . . . . 1 2 . . . 1 . . . . . . 2 . . . 1 1 . . . 3 Hackware 50 | . . . . . . . . . . . 4 . . 1 1 . 3 1 5 . . 1 3 3 . 5 9 1 . 6 7 Protection 67 | . . . . 1 . 3 3 1 1 3 9 1 . . 4 1 2 . 6 2 2 1 1 3 1 4 14 . . 2 2 Artifact . | . . . . . . . . . . . . . . . . . . . . . . . . . . . . . . . . Weapon 275 | 2 2 2 5 6 2 14 11 2 . 18 14 2 . 2 18 . 5 . 16 8 8 7 1 6 . 9 37 13 6 22 37 Energy Gun 21 | 1 . . 4 . . . . . . . . . . 1 1 . . . . 1 . . . . . . . . 1 6 6 Energy Cannon 8 | . . . . 1 . 2 . . . . . . . . . . 1 . . . . . . . . . . 1 . . 3 Ballistic Gun 95 | 1 2 1 . 4 1 4 . 2 . 8 4 . . . 10 . . . 1 5 2 3 . 4 . 4 13 2 5 8 11 Ballistic Cannon 19 | . . . . . . 2 6 . . . . . . . . . . . 3 1 1 . . . . . 1 4 . 1 . Launcher 25 | . . 1 . . 1 1 3 . . 5 2 . . . 3 . . . 5 1 . . . . . . . . . . 3 Special Weapon 48 | . . . . . . . . . . . 1 . . 1 2 . 3 . 5 . 2 1 . 2 . 4 9 2 . 7 9 Impact Weapon 7 | . . . 1 1 . . 2 . . . . . . . . . . . . . . . . . . . 3 . . . . Slashing Weapon 48 | . . . . . . 5 . . . 4 5 2 . . 2 . 1 . 2 . 3 3 1 . . 1 11 3 . . 5 Piercing Weapon . | . . . . . . . . . . . . . . . . . . . . . . . . . . . . . . . . Special Melee Weapon 4 | . . . . . . . . . . 1 2 . . . . . . . . . . . . . . . . 1 . . . Unidentified Prototypes 24 | . . 1 . 1 . 2 . 1 . . 1 . . . . . . . . 4 . 1 . . . . 4 4 . 2 3 Parts Lost 118 | . . . 1 . . 9 . 4 . 1 4 1 . . 3 . 1 . 11 3 1 1 . . . 1 15 12 . 23 27 Power 14 | . . . . . . 2 . 1 . . 1 . . . 1 . . . 1 . . . . . . . 3 2 . 1 2 Propulsion 27 | . . . . . . 4 . 2 . . 2 1 . . 2 . . . 3 . . . . . . . 3 1 . 4 5 Utility 33 | . . . . . . 1 . . . 1 . . . . . . . . 3 . 1 1 . . . 1 5 4 . 7 9 Weapon 44 | . . . 1 . . 2 . 1 . . 1 . . . . . 1 . 4 3 . . . . . . 4 5 . 11 11 Highest Loss Streak 17 | . . . 1 . . 4 . 4 . 1 2 1 . . 2 . 1 . 9 2 1 1 . . . 1 5 8 . 17 12 Average Slot Usage (%) 94 | . 85 100 99 100 100 96 100 98 100 95 99 99 100 98 99 98 96 94 92 89 89 88 89 88 87 89 92 90 77 86 88 Engine 2 | . 14 14 11 11 11 7 3 . . . 1 6 6 5 5 5 2 . . . . . . . . . . . . . . Core 1 | . . . . . . . 5 8 7 7 4 . . . . . . . 3 1 . . . . . . . . . . . Reactor 2 | . . . . . . . . . . . . . . . . . 2 5 1 3 4 5 4 4 4 4 3 3 4 4 3 Treads 13 | . 28 28 22 22 22 30 . 12 30 30 25 20 20 17 6 9 6 15 10 10 10 10 9 9 8 8 11 . . . 7 Leg 5 | . . . . . . 3 36 23 . . . 5 6 5 15 9 12 . 2 . . . . . . . . 10 8 12 1 Device 7 | . . 5 23 15 11 3 . 4 5 . 8 12 13 6 4 15 8 9 5 4 12 11 10 2 9 2 6 8 11 9 10 Storage 21 | . 14 22 20 22 22 28 27 27 30 30 26 26 26 23 23 21 21 21 21 21 21 21 19 19 17 17 16 17 16 16 15 Processor 9 | . . . . . . . . . . . 9 13 13 11 15 10 10 10 10 10 10 12 14 14 13 13 13 13 12 12 15 Hackware 6 | . . . . . . . . . . . 4 . . 3 . . . 3 13 13 2 . 8 14 8 12 18 19 16 11 10 Protection 3 | . . . . 6 11 3 9 4 8 9 3 . . . 2 5 10 6 1 1 4 6 3 5 8 12 3 . . 1 1 Ballistic Gun 9 | . 21 23 . 14 21 7 . 10 15 11 3 . . . 18 10 4 . . 10 15 18 14 17 17 13 7 1 8 15 17 Ballistic Cannon 1 | . . . . . . 3 12 2 . . . . . . . . . . . 8 . . . . . . . 9 . . . Slashing Weapon 3 | . . . . . . 4 . . . 2 7 12 13 11 . 5 4 5 8 . 3 1 3 . . 1 3 3 . . . Naked Turns 1 | . . . . . . . . . . . . . . . . . . . . . . . . . . . . . . . 1 Heaviest Build 190 | 13 13 21 25 26 26 119 102 96 113 127 139 138 131 137 158 159 173 173 182 172 165 166 171 163 167 174 167 167 152 186 190 Greatest Support 155 | 40 40 40 40 46 46 89 66 100 100 100 108 98 60 60 75 117 120 120 120 155 155 155 155 150 145 145 145 130 130 130 145 Greatest Overweight (x) 9 | 3 . . . . . 2 3 1 1 1 1 2 2 2 2 2 8 1 9 9 1 1 1 1 1 1 3 4 1 2 2 Average Overweight (x) 1 | . . . . . . . 1 . 1 1 1 1 2 2 1 1 1 1 3 1 . 1 . 1 1 1 . 1 . 1 . Largest Inventory Capacity 34 | 6 6 10 8 8 8 32 32 26 32 32 34 34 34 34 34 34 34 34 34 34 34 34 34 34 34 34 34 28 28 28 28 Average Capacity 29 | 5 6 8 8 8 8 21 26 26 32 32 33 34 34 34 34 34 34 34 34 34 34 34 34 34 34 34 31 28 28 28 27 Most Carried 34 | 6 6 10 8 8 8 32 31 26 32 32 34 34 34 33 34 34 34 34 34 34 34 34 33 34 34 34 34 28 28 28 28 Average Carried 28 | 4 5 8 7 7 7 20 25 25 30 31 32 33 34 32 33 33 33 34 28 33 33 33 30 33 33 33 30 23 24 25 26 Final Capacity 34 | 6 6 8 8 8 8 32 26 26 32 32 34 34 34 34 34 34 34 34 34 34 34 34 34 34 34 34 28 28 28 28 4 Final Carried 34 | 6 6 8 8 8 8 31 26 26 32 32 33 34 34 32 34 34 34 34 34 34 34 34 31 34 34 34 25 28 22 28 4 Class Distribution -------------------- 27% | Botlord-Mutant 12% | Bothacker-Assassin 12% | Bothacker-Mutant 10% | Hauler-Mutant 9% | Mutant 8% | Botlord-Executioner 4% | Botlord-Gunner Dominant Class ---------------- Mutant | -10/Materials Mutant | -10/Mines Mutant | -9/Materials Mutant | -9/Storage Mutant | -9/Garrison Hauler-Mutant | -8/Materials Hauler-Mutant | -8/Garrison Hauler-Mutant | -8/Materials Hauler-Mutant | -7/Factory Bothacker-Mutant | -7/Garrison Bothacker-Mutant | -6/Factory Bothacker-Assassin | -6/Lower Caves Bothacker-Assassin | -6/Lower Caves Bothacker-Mutant | -5/Factory Scavenger-Gunner | -5/Garrison Bothacker-Assassin | -4/Factory Botlord-Mutant | -4/Garrison Botlord-Assassin | -4/Factory Botlord-Mutant | -4/Extension Botlord-Skirmisher | -4/Cetus Bothacker-Mutant | -4/Archives Bothacker-Assassin | -4/Hub_04(d) Bothacker-Assassin | -3/Research Botlord-Tank | -3/Garrison Botlord-Skirmisher | -2/Research Botlord-Mutant | -2/Garrison Botlord-Mutant | -2/Research Botlord-Mutant | -2/Testing Botlord-Executioner | -1/Access Botlord-Executioner | -1/Garrison Botlord-Executioner | -1/Access Resources | -11 -10 -10 -9 -9 -9 -8 -8 -8 -7 -7 -6 -6 -6 -5 -5 -4 -4 -4 -4 -4 -4 -4 -3 -3 -2 -2 -2 -2 -1 -1 -1 ----------- Run | Scr Mat Min Mat Sto Gar Mat Gar Mat Fac Gar Fac Low Low Fac Gar Fac Gar Fac Ext Cet Arc Hub Res Gar Res Gar Res Tes Acc Gar Acc Matter Collected 16503 | 260 19 228 100 188 206 797 328 279 68 437 709 310 42 . 1171 . 659 60 1117 695 495 560 . 419 . 787 1799 630 . 1703 2437 Remotely 4508 | . . . . . . . . . . . 200 . . . 138 . . 60 768 247 . . . . . . 846 428 . 556 1265 Salvage Created 15440 | . 46 182 217 184 430 1445 374 279 68 486 665 74 . . 1134 . 472 . 361 503 502 948 . 285 . 503 2015 386 . 1413 2468 Parts 803 | . 2 12 14 6 20 74 31 14 5 24 39 5 . . 49 . 22 . 14 19 26 41 . 21 . 20 101 28 . 68 148 Haulers Intercepted . | . . . . . . . . . . . . . . . . . . . . . . . . . . . . . . . . Recyclers Shooed 6 | . . . . . . 1 . . . . . . . . . . . . 2 . . . . . . . 2 . . . 1 Parts Field Recycled . | . . . . . . . . . . . . . . . . . . . . . . . . . . . . . . . . Retrieved Matter . | . . . . . . . . . . . . . . . . . . . . . . . . . . . . . . . . Parts Self-Destructed . | . . . . . . . . . . . . . . . . . . . . . . . . . . . . . . . . Prevented . | . . . . . . . . . . . . . . . . . . . . . . . . . . . . . . . . Kills | -11 -10 -10 -9 -9 -9 -8 -8 -8 -7 -7 -6 -6 -6 -5 -5 -4 -4 -4 -4 -4 -4 -4 -3 -3 -2 -2 -2 -2 -1 -1 -1 ------- Run | Scr Mat Min Mat Sto Gar Mat Gar Mat Fac Gar Fac Low Low Fac Gar Fac Gar Fac Ext Cet Arc Hub Res Gar Res Gar Res Tes Acc Gar Acc Combat Hostiles Destroyed 260 | . 1 7 7 4 11 30 18 5 1 14 14 1 . . 23 . 9 . 5 10 4 11 . 5 . 7 21 7 . 19 26 Melee 41 | . . . . . . 11 1 . . 2 9 1 . . . . 5 . 1 . . . . . . . 9 2 . . . Guns 141 | . 1 4 7 4 8 10 . 5 1 1 2 . . . 19 . 1 . . 2 1 11 . 5 . 7 10 1 . 17 24 Cannons 31 | . . . . . . 7 9 . . . . . . . . . . . . 5 3 . . . . . . 4 . 2 1 AOE 43 | . . 3 . . 3 2 8 . . 10 3 . . . 4 . 3 . 4 3 . . . . . . . . . . . Classes Destroyed 18 | . 1 1 2 . 1 3 . . . . 3 1 . . 1 . . . . 1 1 1 . . . 1 . . . . 1 Worker 12 | . . . . . . 2 . . . . . . . . . . . . 3 . . 4 . . . . 2 . . . 1 Builder 7 | . . . . . . . . . . . 1 . . . . . . . 1 . . 3 . . . . . 1 . . 1 Tunneler 1 | . . . . . . . . . . . . . . . . . . . . . . 1 . . . . . . . . . Recycler 10 | . . . . . . 2 . . . . . . . . . . . . 2 . . 1 . . . . 3 . . . 2 Carrier 1 | . . . . . . . . . . . . . . . . . . . . 1 . . . . . . . . . . . Operator 5 | . . . . . . . . . . . . . . . . . . . . . 5 . . . . . . . . . . Watcher 7 | . . . 1 . . 1 . 1 . . . . . . . . . . 1 . . 1 . . . . . 1 . . 1 Swarmer 54 | . . 3 3 . . 3 7 . . 7 4 . . . 9 . 4 . . 5 . 4 . 1 . 1 . . . 3 . Grunt 78 | . 1 4 1 3 10 16 7 2 . 4 1 . . . 4 . 5 . . . . . . 3 . . 2 2 . 7 6 Brawler 2 | . . . . . . . . . . . 1 . . . . . . . . . . . . . . . . . . . 1 Duelist 9 | . . . . . 1 1 1 2 . . 1 . . . 2 . . . . . . . . . . . . . . . 1 Sentry 44 | . . . 3 1 . 9 3 1 1 1 2 . . . 4 . . . 1 . 4 5 . . . 1 5 . . 1 2 Specialist 1 | . . . . . . . . . . . . . . . . . . . . . . . . . . 1 . . . . . Hunter 19 | . . . . . . 1 . . . 2 3 . . . 1 . . . . 1 . . . . . 1 2 3 . 4 1 Programmer 45 | . . . . . . . . . . . 2 . . . 2 . . . 2 . . 2 . 1 . 2 13 3 . 5 13 Q-Series 4 | . . . . . . . . . . . . . . . . . . . . . . . . . . . . . . . 4 Behemoth 4 | . . . . . . . . . . . . . . . 1 . . . 2 . . . . . . 1 . . . . . Cetus Guard 5 | . . . . . . . . . . . . . . . . . . . . 5 . . . . . . . . . . . Mutant 1 | . . . . . . . . . . . . 1 . . . . . . . . . . . . . . . . . . . Best Kill Streak 11 | . 1 3 5 3 5 7 7 2 1 6 5 1 . . 4 . 3 . 6 5 3 11 . 4 . 2 3 3 . 5 7 Combat Bots Only 7 | . 1 3 4 3 5 6 7 2 1 6 5 1 . . 4 . 3 . 2 5 3 4 . 4 . 2 2 2 . 5 5 Max Kills in Single Turn 8 | . 1 2 1 2 2 2 2 1 1 3 2 1 . . 2 . 3 . 3 4 1 8 . 1 . 1 1 1 . 2 2 Gunslinging 1 | . . . . 1 . . . . . . . . . . 1 . . . . . . . . . . . . . . 1 . Exploded 3 | . . 2 . . 2 1 2 . . 3 2 . . . 2 . 3 . 1 3 . . . . . . . . . . . Melee 1 | . . . . . . 1 1 . . 1 1 1 . . . . 1 . 1 . . . . . . . 1 1 . . . Uniques/NPCs Destroyed . | . . . . . . . . . . . . . . . . . . . . . . . . . . . . . . . . Combat | -11 -10 -10 -9 -9 -9 -8 -8 -8 -7 -7 -6 -6 -6 -5 -5 -4 -4 -4 -4 -4 -4 -4 -3 -3 -2 -2 -2 -2 -1 -1 -1 -------- Run | Scr Mat Min Mat Sto Gar Mat Gar Mat Fac Gar Fac Low Low Fac Gar Fac Gar Fac Ext Cet Arc Hub Res Gar Res Gar Res Tes Acc Gar Acc Damage Taken 39490 | . . 396 297 138 404 2384 646 508 61 1010 1672 208 . . 1850 . 930 . 2563 1151 421 952 . 560 . 1688 6080 3140 . 4283 8148 Core 4261 | . . 90 9 . 57 294 86 26 . 110 154 32 . . 167 . 93 . 187 58 60 80 . 112 . 96 639 579 . 478 854 Absorbed by Shields 1203 | . . . . . . . . . . . . . . . . . . . . . . . . . . . . . . 223 980 Reduced by Siege Mode 342 | . . . . . . . . . . . . . . . . . . . 25 61 12 9 . . . 107 . . . . 128 Core Remaining (%) 62 | 100 . 64 . . 83 . . 26 . 84 . . 78 . 83 . . . . . . 58 . 91 . . . 9 . . 16 Volleys Fired 702 | . 2 18 19 14 24 59 34 19 3 20 18 . . 1 51 . 23 . 47 23 17 23 . 15 . 33 62 26 . 61 90 Largest 6 | . 2 2 2 2 2 2 2 2 2 2 2 . . 1 4 . 2 . 3 4 4 4 . 4 . 4 4 4 . 6 6 Hottest 347 | . 70 40 130 91 46 124 88 50 50 72 56 . . 30 148 . 143 . 214 206 156 138 . 136 . 134 134 318 . 326 347 Shots Fired 1829 | . 4 34 38 28 45 106 57 38 6 29 26 . . 1 160 . 25 . 59 79 59 86 . 37 . 75 152 80 . 240 365 Gun 1368 | . 4 32 38 26 42 75 . 38 6 10 16 . . . 148 . 3 . . 48 42 84 . 30 . 61 122 7 . 212 324 Cannon 213 | . . . . 2 . 28 47 . . . . . . . . . 2 . 2 29 14 . . . . . 1 65 . 11 12 Launcher 91 | . . 2 . . 3 3 10 . . 19 4 . . . 7 . 7 . 28 2 . . . . . . . . . . 6 Special 157 | . . . . . . . . . . . 6 . . 1 5 . 13 . 29 . 3 2 . 7 . 14 29 8 . 17 23 Kinetic 1418 | . 3 32 . 26 42 94 47 38 6 10 16 . . . 148 . 3 . . 77 56 84 . 30 . 61 123 67 . 186 269 Thermal 95 | . 1 . 38 2 . 6 . . . . . . . . . . 2 . 2 . . . . . . . . 5 . 12 27 Explosive 53 | . . 2 . . 3 3 6 . . 7 2 . . . 3 . . . 25 2 . . . . . . . . . . . Electromagnetic 106 | . . . . . . 3 4 . . 12 2 . . . 4 . 7 . 3 . . . . . . . . . . 25 46 Robot Hit Streak 53 | . 2 5 10 8 23 28 11 11 6 10 13 . . . 14 . 6 . 24 14 27 33 . 16 . 53 22 4 . 18 51 Robot Miss Streak 11 | . . 2 2 1 1 3 11 7 . 1 2 . . 2 6 . 1 . 2 6 3 3 . 1 . 1 3 6 . 4 3 Penetration Max 1 | . . . . . . . . . . . . . . . 1 . . . . . . 1 . . . 1 1 . . 1 1 Secondary Targets 25 | . . . . 2 2 2 . . . . . . . . 5 . . . . . . 1 . 2 . 4 . . . 3 4 Max Gunslinging Chain 2 | . . . . 1 1 1 . . . . . . . . 2 . . . . . . 1 . 1 . 1 . . . 2 1 Shots Hit Robots 1432 | . 2 24 30 20 40 114 48 32 5 25 49 8 . . 102 1 30 . 50 48 51 55 . 24 . 67 196 37 . 130 244 Core Hits 670 | . 2 13 11 8 20 77 48 9 3 21 28 3 . . 73 . 20 . 28 21 20 32 . 11 . 15 50 17 . 53 87 Critical Hits 114 | . . . . . . . . . . . . . . . 9 . . . . 15 4 4 . 2 . 9 26 3 . 17 25 Critical Kills 41 | . . . . . . . . . . . . . . . 4 . . . . 8 1 2 . 1 . 3 11 1 . 6 4 Critical Parts Destroyed 62 | . . . . . . . . . . . . . . . 4 . . . . 7 . 2 . 1 . 2 14 2 . 10 20 Melee Attacks 394 | . . . 4 2 . 43 5 9 . 9 64 11 . 5 6 1 22 5 9 . 11 12 1 . . 2 142 21 . . 10 Impact 48 | . . . 4 2 . . 5 9 . . . . . . . . . . . . . . . . . . 28 . . . . Slashing 336 | . . . . . . 43 . . . 8 55 11 . 5 6 1 22 5 9 . 11 12 1 . . 2 114 21 . . 10 Piercing . | . . . . . . . . . . . . . . . . . . . . . . . . . . . . . . . . Sneak Attacks 28 | . . . . . . 2 . 1 . . 5 . . . . 1 . . 3 . 6 . . . . . 7 3 . . . Combat Hostiles 6 | . . . . . . 1 . . . . 1 . . . . . . . 1 . . . . . . . 2 1 . . . Follow-up Attacks 22 | . . . . . . 2 . . . . 1 . . . . . . . . . . . . . . . 19 . . . . Damage Inflicted 41665 | . 24 444 454 304 882 2799 1507 655 85 1579 1522 271 . . 2293 102 1174 . 3429 1521 2173 2220 . 445 . 1329 5878 1674 . 3261 5640 Guns 19876 | . 24 271 448 274 546 859 . 386 85 52 356 . . . 1911 . 71 . . 641 639 1309 . 445 . 1329 2264 60 . 2967 4939 Cannons 3592 | . . . . 30 . 441 707 . . . . . . . . . . . 43 271 351 . . . . . . 1151 . 276 322 Explosions 9106 | . . 173 . . 336 490 736 . . 1258 262 . . . 382 . 528 . 3082 609 . 871 . . . . . . . . 379 Melee 8974 | . . . . . . 984 64 262 . 269 890 271 . . . 102 575 . 302 . 1183 40 . . . . 3609 423 . . . Ramming 117 | . . . 6 . . 25 . 7 . . 14 . . . . . . . 2 . . . . . . . 5 40 . 18 . Kinetic 21176 | . 24 271 . 274 546 1225 707 386 85 52 356 . . . 1911 . 71 . . 912 990 1309 . 445 . 1329 2264 1129 . 2858 4032 Thermal 1903 | . . . 448 30 . 118 58 . . 180 . . . . . . 199 . 43 . . . . . . . . 82 . 139 606 Explosive 6203 | . . 173 . . 336 447 542 . . 593 187 . . . 340 . . . 2976 609 . . . . . . . . . . . Electromagnetic 3292 | . . . . . . . 136 . . 485 75 . . . 42 . 329 . 106 . . 871 . . . . . . . 246 1002 Impact 834 | . . . . . . . 64 262 . . . . . . . . . . . . . . . . . . 508 . . . . Slashing 8140 | . . . . . . 984 . . . 269 890 271 . . . 102 575 . 302 . 1183 40 . . . . 3101 423 . . . Piercing . | . . . . . . . . . . . . . . . . . . . . . . . . . . . . . . . . Highest Corruption 31 | . . . . 1 1 . . . . 1 3 4 4 . 2 . . . 4 4 4 6 . . . 2 23 27 . 8 31 Average Corruption 7 | . . . . 1 1 . . . . 1 2 3 4 . 2 . . . 3 4 3 3 . . . 1 11 23 . 7 14 Corruption Purged 22 | . . . . . . . . . . . . . . . . . . . . . 4 . . . . 2 15 1 . . . Effects 561 | . . . . . 2 . . . . 3 7 22 24 . 18 . . . 24 16 22 16 . . . 5 87 82 . 56 177 Message Errors 102 | . . . . . 1 . . . . 2 4 4 7 . 3 . . . 3 5 7 4 . . . 1 16 16 . 8 21 Matter Fused 94 | . . . . . . . . . . . . 8 7 . . . . . 6 5 4 5 . . . . 13 7 . 10 29 Heat Flow Errors 39 | . . . . . . . . . . . . 3 2 . 1 . . . 3 1 3 1 . . . 1 6 4 . 9 5 Energy Discharges 54 | . . . . . 1 . . . . 1 2 1 3 . 4 . . . 5 5 3 1 . . . . 8 6 . 5 9 Parts Rejected 10 | . . . . . . . . . . . . . . . . . . . 2 . . . . . . . 2 . . 1 5 Data Loss (minor) 47 | . . . . . . . . . . . 1 5 5 . 4 . . . 2 . 2 3 . . . . 6 3 . 4 12 Data Loss (major) 15 | . . . . . . . . . . . . . . . . . . . . . . . . . . . 2 6 . 2 5 Misfires 9 | . . . . . . . . . . . . . . . . . . . . . . . . . . . 1 3 . 3 2 Alerts 5 | . . . . . . . . . . . . . . . . . . . . . . . . . . . . 2 . . 3 Misdirections 34 | . . . . . . . . . . . . . . . . . . . . . . . . . . . 9 15 . . 10 Targeting Errors 139 | . . . . . . . . . . . . 1 . . 4 . . . 2 . 3 2 . . . 3 24 19 . 14 67 Weapon Failures 13 | . . . . . . . . . . . . . . . 2 . . . 1 . . . . . . . . 1 . . 9 Overload Shots . | . . . . . . . . . . . . . . . . . . . . . . . . . . . . . . . . Overflow Damage 1474 | . . . . . . 8 61 62 . 64 29 28 . . . 32 35 . 80 9 525 82 . . . . 361 98 . . . Projectiles 29 | . . . . . . . . . . . . . . . . . . . . 9 . . . . . . . 20 . . . Explosions 271 | . . . . . . 8 61 . . 64 . . . . . . 8 . 48 . . 82 . . . . . . . . . Melee 1174 | . . . . . . . . 62 . . 29 28 . . . 32 27 . 32 . 525 . . . . . 361 78 . . . Knockbacks 48 | . . . . . . 11 20 3 . . . . . . . . . . . 1 . . . . . . 3 8 . 2 . Impact 6 | . . . . . . . . 3 . . . . . . . . . . . . . . . . . . 3 . . . . Kinetic 39 | . . . . . . 11 18 . . . . . . . . . . . . 1 . . . . . . . 7 . 2 . Secondary 3 | . . . . . . . 2 . . . . . . . . . . . . . . . . . . . . 1 . . . Self-Inflicted Damage 471 | . . . . . . . . . . 151 . . . . 21 . 23 . 132 . . 101 . . . . . 19 . . 24 Shots 18 | . . . . . . . . . . 10 . . . . 1 . 1 . 3 . . 1 . . . . . . . . 2 Rammed 13 | . . . 3 . . 3 . 1 . . 1 . . . . . . . 2 . . . . . . . 1 2 . . . Targets Rammed 15 | . . . 4 . . 3 . 1 . . 1 . . . . . . . 2 . . . . . . . 1 2 . 1 . Kicked 1 | . . . . . . . . . . . . . . . . . . . . . . . . . . . . . . 1 . Crushed 1 | . . . 1 . . . . . . . . . . . . . . . . . . . . . . . . . . . . Highest Temperature 597 | . 9 2 99 5 44 171 250 22 . 80 9 206 257 . 401 . 26 . 220 258 411 270 . 42 . 241 199 206 . 327 597 Average Temperature 82 | . 6 2 32 3 17 40 74 4 . 23 4 85 115 . 101 . 10 . 44 102 175 81 . 15 . 46 62 120 . 88 106 Received Heat Transfer 4304 | . . 171 78 24 225 1080 243 54 24 126 339 120 . . 321 . 147 . 234 90 63 81 . 78 . 180 327 9 . 90 200 Effects 15 | . . . . . . . 1 . . . . . . . 5 . . . . . 1 1 . . . 1 . . . . 6 Shutdowns 2 | . . . . . . . . . . . . . . . . . . . . . 1 . . . . . . . . . 1 Energy Bleed 2 | . . . . . . . . . . . . . . . . . . . . . . 1 . . . 1 . . . . . Interference 7 | . . . . . . . 1 . . . . . . . 3 . . . . . . . . . . . . . . . 3 Matter Decay 2 | . . . . . . . . . . . . . . . 2 . . . . . . . . . . . . . . . . Short Circuit 1 | . . . . . . . . . . . . . . . . . . . . . . . . . . . . . . . 1 Damage (minor) 1 | . . . . . . . . . . . . . . . . . . . . . . . . . . . . . . . 1 Siege Activations 13 | . . . . . . . . . . . . . . . . . . . 1 2 3 1 . 1 . 2 . . . . 3 Total Turns 179 | . . . . . . . . . . . . . . . . . . . 11 53 22 17 . 3 . 29 . . . . 44 Longest Duration 50 | . . . . . . . . . . . . . . . . . . . 11 50 10 17 . 3 . 18 . . . . 24 Robots Corrupted 4 | . . . . . . . . . . 1 . . . . . . . . . . . 2 . . . . . . . . 1 Combat Hostiles 2 | . . . . . . . . . . 1 . . . . . . . . . . . . . . . . . . . . 1 Parts Fried 21 | . . . . . . . 1 2 . 1 . . . . . . . . . . . 6 . . . . 2 . . 1 8 Impact Corruptions 11 | . . . . . . . . 2 . . . . . . . . . . . . . . . . . . 9 . . . . Robots Melted . | . . . . . . . . . . . . . . . . . . . . . . . . . . . . . . . . Combat Hostiles . | . . . . . . . . . . . . . . . . . . . . . . . . . . . . . . . . Parts Melted 8 | . . . 1 . . . . . . . 1 . . . . . . . . . . . . 1 . . 4 . . . 1 Heat Transferred 2826 | . . . 1073 74 . 200 100 . . 200 . . . . . . 250 . 25 . . . . . . . . 74 . 185 645 Parts Sabotaged . | . . . . . . . . . . . . . . . . . . . . . . . . . . . . . . . . Parts Stolen . | . . . . . . . . . . . . . . . . . . . . . . . . . . . . . . . . Parts Stripped . | . . . . . . . . . . . . . . . . . . . . . . . . . . . . . . . . Power Chain Reactions 5 | . . . . . . . 1 . . 3 . . . . . . 1 . . . . . . . . . . . . . . Missiles Intercepted . | . . . . . . . . . . . . . . . . . . . . . . . . . . . . . . . . Alert | -11 -10 -10 -9 -9 -9 -8 -8 -8 -7 -7 -6 -6 -6 -5 -5 -4 -4 -4 -4 -4 -4 -4 -3 -3 -2 -2 -2 -2 -1 -1 -1 ------- Run | Scr Mat Min Mat Sto Gar Mat Gar Mat Fac Gar Fac Low Low Fac Gar Fac Gar Fac Ext Cet Arc Hub Res Gar Res Gar Res Tes Acc Gar Acc Peak Influence 850 | . 50 139 279 539 715 554 806 435 135 682 446 . . 23 675 354 568 325 311 480 337 850 443 431 242 321 405 245 66 506 710 Initial 441 | . . 19 19 38 350 348 280 392 42 94 357 . . . 16 354 247 298 154 22 138 . 441 . 242 181 180 189 66 52 303 Average 279 | . 13 62 132 255 485 236 646 281 93 358 275 . . 12 342 354 415 306 158 279 154 142 345 233 242 262 242 162 66 323 375 Maximum Alert Level 3 | . . . 1 2 3 2 3 2 . 2 2 . . . 2 1 2 1 1 2 1 3 2 2 1 1 2 1 . 2 3 Low Security (%) 36 | 100 100 100 67 54 . 38 . 27 100 25 38 . . 100 20 . . . 59 18 72 88 21 39 . 27 34 63 100 17 20 Level 1 40 | . . . 32 14 28 51 21 48 . 41 45 . . . 36 100 38 100 40 72 27 10 . 41 100 72 65 36 . 53 19 Level 2 21 | . . . . 30 68 10 16 23 . 33 16 . . . 43 . 61 . . 9 . . 78 18 . . . . . 28 57 Level 3 2 | . . . . . 3 . 61 . . . . . . . . . . . . . . 1 . . . . . . . . 2 Level 4 . | . . . . . . . . . . . . . . . . . . . . . . . . . . . . . . . . Level 5 . | . . . . . . . . . . . . . . . . . . . . . . . . . . . . . . . . High Security . | . . . . . . . . . . . . . . . . . . . . . . . . . . . . . . . . Max Security . | . . . . . . . . . . . . . . . . . . . . . . . . . . . . . . . . Squads Dispatched 56 | . 2 . 2 3 . 3 . . . . 7 . . 1 . . . . 2 . . 4 . . . . 8 4 . . 20 Investigation 4 | . . . . . . 2 . . . . 2 . . . . . . . . . . . . . . . . . . . . Extermination 19 | . . . . . . . . . . . 2 . . . . . . . . . . 1 . . . . 6 2 . . 8 Reinforcement 20 | . 2 . 2 1 . 1 . . . . 3 . . 1 . . . . 2 . . 2 . . . . 2 2 . . 2 Assault 4 | . . . . . . . . . . . . . . . . . . . . . . . . . . . . . . . 4 Garrison 9 | . . . . 2 . . . . . . . . . . . . . . . . . 1 . . . . . . . . 6 Intercept . | . . . . . . . . . . . . . . . . . . . . . . . . . . . . . . . . Construction Impeded 3 | . . . . . . . . . . . 1 . . . . . . . 1 . . 1 . . . . . . . . . Haulers Reinforced 2 | . . . . . . . . . . . . . . . . . . . . . . . . . . . . . . . 2 Stealth | -11 -10 -10 -9 -9 -9 -8 -8 -8 -7 -7 -6 -6 -6 -5 -5 -4 -4 -4 -4 -4 -4 -4 -3 -3 -2 -2 -2 -2 -1 -1 -1 --------- Run | Scr Mat Min Mat Sto Gar Mat Gar Mat Fac Gar Fac Low Low Fac Gar Fac Gar Fac Ext Cet Arc Hub Res Gar Res Gar Res Tes Acc Gar Acc Distress Signals 20 | . . . 4 1 . . . . . . 1 . . . 2 . . . 4 2 . 1 . . . . 2 . . . 3 Communications Jammed . | . . . . . . . . . . . . . . . . . . . . . . . . . . . . . . . . Distress Signals . | . . . . . . . . . . . . . . . . . . . . . . . . . . . . . . . . Times Spotted 575 | . 4 6 15 15 11 43 19 9 1 20 32 1 . 1 28 . 28 . 26 19 9 27 . 20 . 33 55 23 . 50 80 Peak Tracking Total 23 | . 3 3 7 5 3 4 5 4 1 8 7 1 . 1 6 . 6 . 8 7 1 20 . 5 . 8 6 5 . 23 10 Tactical Retreats 26 | . . . . . . 2 2 2 . 4 2 . . . 1 . 2 . . 1 . 2 . . . 2 2 . . 2 2 Traps | -11 -10 -10 -9 -9 -9 -8 -8 -8 -7 -7 -6 -6 -6 -5 -5 -4 -4 -4 -4 -4 -4 -4 -3 -3 -2 -2 -2 -2 -1 -1 -1 ------- Run | Scr Mat Min Mat Sto Gar Mat Gar Mat Fac Gar Fac Low Low Fac Gar Fac Gar Fac Ext Cet Arc Hub Res Gar Res Gar Res Tes Acc Gar Acc Traps Triggered 40 | . 1 . . 1 . 1 2 . 1 3 3 . . . 3 . 8 . . . . . . 4 . 5 3 . . 4 1 Indirectly . | . . . . . . . . . . . . . . . . . . . . . . . . . . . . . . . . Trap Hack Attempts . | . . . . . . . . . . . . . . . . . . . . . . . . . . . . . . . . Triggered . | . . . . . . . . . . . . . . . . . . . . . . . . . . . . . . . . Disarmed . | . . . . . . . . . . . . . . . . . . . . . . . . . . . . . . . . Reprogrammed . | . . . . . . . . . . . . . . . . . . . . . . . . . . . . . . . . Reused . | . . . . . . . . . . . . . . . . . . . . . . . . . . . . . . . . Traps Extracted . | . . . . . . . . . . . . . . . . . . . . . . . . . . . . . . . . Installed . | . . . . . . . . . . . . . . . . . . . . . . . . . . . . . . . . Triggered . | . . . . . . . . . . . . . . . . . . . . . . . . . . . . . . . . Machines | -11 -10 -10 -9 -9 -9 -8 -8 -8 -7 -7 -6 -6 -6 -5 -5 -4 -4 -4 -4 -4 -4 -4 -3 -3 -2 -2 -2 -2 -1 -1 -1 ---------- Run | Scr Mat Min Mat Sto Gar Mat Gar Mat Fac Gar Fac Low Low Fac Gar Fac Gar Fac Ext Cet Arc Hub Res Gar Res Gar Res Tes Acc Gar Acc Machines Disabled 54 | . . . . 1 . 4 1 . . 2 . 1 . . 2 . 2 . 1 . 3 19 . 2 . 3 . 3 . 5 5 Max in Single Turn 13 | . . . . 1 . 2 1 . . 1 . 1 . . 1 . 1 . 1 . 1 13 . 1 . 1 . 1 . 1 1 Garrison Access 2 | . . . . . . . . . . . . . . . . . . . . . . 1 . . . . 1 . . . . Garrison Relay 15 | . . . . . . . 1 . . 2 . . . . 2 . 2 . . . . . . 2 . 2 . . . 4 . Network Hub 1 | . . . . . . . . . . . . . . . . . . . . . . 1 . . . . . . . . . Machines Sabotaged . | . . . . . . . . . . . . . . . . . . . . . . . . . . . . . . . . Garrisons Compromised . | . . . . . . . . . . . . . . . . . . . . . . . . . . . . . . . . Overloaded Fab Kills . | . . . . . . . . . . . . . . . . . . . . . . . . . . . . . . . . Fab Network Shutdowns . | . . . . . . . . . . . . . . . . . . . . . . . . . . . . . . . . Hacking | -11 -10 -10 -9 -9 -9 -8 -8 -8 -7 -7 -6 -6 -6 -5 -5 -4 -4 -4 -4 -4 -4 -4 -3 -3 -2 -2 -2 -2 -1 -1 -1 --------- Run | Scr Mat Min Mat Sto Gar Mat Gar Mat Fac Gar Fac Low Low Fac Gar Fac Gar Fac Ext Cet Arc Hub Res Gar Res Gar Res Tes Acc Gar Acc Machines Accessed 61 | . 1 . 4 1 . 8 . 5 3 . 11 . . 1 . 1 . 1 4 2 . 3 3 . 1 . 4 7 1 . . Terminals 39 | . 1 . 3 . . 6 . 5 1 . 6 . . . . . . 1 4 2 . 2 2 . . . 1 5 . . . Fabricators 5 | . . . . . . . . . . . 2 . . . . . . . . . . . . . . . 2 1 . . . Repair Stations 2 | . . . . . . . . . . . 2 . . . . . . . . . . . . . . . . . . . . Recycling Units 1 | . . . . . . . . . . . 1 . . . . . . . . . . . . . . . . . . . . Scanalyzers 4 | . . . 1 . . 1 . . 1 . . . . . . . . . . . . . . . . . . 1 . . . Garrison Access 10 | . . . . 1 . 1 . . 1 . . . . 1 . 1 . . . . . 1 1 . 1 . 1 . 1 . . Total Hacks 194 | . 4 . 15 1 . 31 . 17 8 . 29 . . 1 . 1 . 2 11 5 . 8 7 . 1 . 18 34 1 . . Successful 88 | . 1 . 8 1 . 14 . 9 4 . 12 . . 1 . 1 . 1 6 4 . 5 4 . 1 . 3 12 1 . . Failed 106 | . 3 . 7 . . 17 . 8 4 . 17 . . . . . . 1 5 1 . 3 3 . . . 15 22 . . . Catastrophic 24 | . 1 . 1 . . 3 . 2 1 . 3 . . . . . . . 2 . . . . . . . 5 6 . . . Database Lockouts . | . . . . . . . . . . . . . . . . . . . . . . . . . . . . . . . . Manual 98 | . 4 . 10 1 . 22 . 17 2 . 15 . . . . . . 2 8 2 . 2 1 . . . 1 11 . . . Terminals 141 | . 4 . 10 . . 27 . 17 5 . 18 . . . . . . 2 11 5 . 5 6 . . . 2 29 . . . Fabricators 22 | . . . . . . . . . . . 5 . . . . . . . . . . . . . . . 14 3 . . . Repair Stations 3 | . . . . . . . . . . . 3 . . . . . . . . . . . . . . . . . . . . Recycling Units 3 | . . . . . . . . . . . 3 . . . . . . . . . . . . . . . . . . . . Scanalyzers 12 | . . . 5 . . 3 . . 2 . . . . . . . . . . . . . . . . . . 2 . . . Garrison Access 13 | . . . . 1 . 1 . . 1 . . . . 1 . 1 . . . . . 3 1 . 1 . 2 . 1 . . Terminal Hacks 33 | . . . 3 . . 6 . 3 2 . 1 . . . . . . . 3 4 . 3 3 . . . . 5 . . . Record 7 | . . . . . . . . . . . . . . . . . . . . 4 . 3 . . . . . . . . . Part Schematic 3 | . . . 2 . . . . . . . . . . . . . . . . . . . . . . . . 1 . . . Open Door 1 | . . . . . . . . . . . . . . . . . . . . . . . . . . . . 1 . . . Level Access Points 2 | . . . . . . . . 1 . . . . . . . . . . . . . . . . . . . 1 . . . Branch Access Points 6 | . . . 1 . . 2 . . 1 . 1 . . . . . . . 1 . . . . . . . . . . . . Emergency Access Points 1 | . . . . . . . . . . . . . . . . . . . . . . . . . . . . 1 . . . Terminal Index 1 | . . . . . . . . . . . . . . . . . . . . . . . . . . . . 1 . . . Garrison Index 2 | . . . . . . 1 . . 1 . . . . . . . . . . . . . . . . . . . . . . Unreport Threat 8 | . . . . . . 3 . 2 . . . . . . . . . . . . . . 3 . . . . . . . . Locate Traps 1 | . . . . . . . . . . . . . . . . . . . 1 . . . . . . . . . . . . Zone Layout 1 | . . . . . . . . . . . . . . . . . . . 1 . . . . . . . . . . . . Fabricator Hacks 4 | . . . . . . . . . . . 2 . . . . . . . . . . . . . . . 2 . . . . Load Schematic 3 | . . . . . . . . . . . 2 . . . . . . . . . . . . . . . 1 . . . . Build 1 | . . . . . . . . . . . . . . . . . . . . . . . . . . . 1 . . . . Repair Station Hacks 1 | . . . . . . . . . . . 1 . . . . . . . . . . . . . . . . . . . . Scan Component 1 | . . . . . . . . . . . 1 . . . . . . . . . . . . . . . . . . . . Recycling Unit Hacks 2 | . . . . . . . . . . . 2 . . . . . . . . . . . . . . . . . . . . Process 1 | . . . . . . . . . . . 1 . . . . . . . . . . . . . . . . . . . . Retrieve Matter 1 | . . . . . . . . . . . 1 . . . . . . . . . . . . . . . . . . . . Scanalyzer 9 | . . . 4 . . 3 . . . . . . . . . . . . . . . . . . . . . 2 . . . Insert Component 4 | . . . 1 . . 2 . . . . . . . . . . . . . . . . . . . . . 1 . . . Analyze 5 | . . . 3 . . 1 . . . . . . . . . . . . . . . . . . . . . 1 . . . Garrison Access Hacks 11 | . . . . 1 . 1 . . 1 . . . . 1 . 1 . . . . . 2 1 . 1 . 1 . 1 . . Unlock Access 8 | . . . . 1 . 1 . . 1 . . . . 1 . 1 . . . . . . 1 . 1 . . . 1 . . Seal Access 2 | . . . . . . . . . . . . . . . . . . . . . . 1 . . . . 1 . . . . Coupler Status 1 | . . . . . . . . . . . . . . . . . . . . . . 1 . . . . . . . . . Unauthorized Hacks 28 | . 1 . 1 . . 4 . 6 1 . 6 . . . . . . 1 3 . . . . . . . . 5 . . . Terminals 28 | . 1 . 1 . . 4 . 6 1 . 6 . . . . . . 1 3 . . . . . . . . 5 . . . Track 5 | . . . . . . . . 2 . . . . . . . . . . 1 . . . . . . . . 2 . . . Assimilate 4 | . . . . . . . . 1 . . 2 . . . . . . . . . . . . . . . . 1 . . . Botnet 18 | . 1 . 1 . . 4 . 3 1 . 4 . . . . . . . 2 . . . . . . . . 2 . . . Disrupt 1 | . . . . . . . . . . . . . . . . . . 1 . . . . . . . . . . . . . Fabricators . | . . . . . . . . . . . . . . . . . . . . . . . . . . . . . . . . Repair Stations . | . . . . . . . . . . . . . . . . . . . . . . . . . . . . . . . . Recycling Units . | . . . . . . . . . . . . . . . . . . . . . . . . . . . . . . . . Scanalyzers . | . . . . . . . . . . . . . . . . . . . . . . . . . . . . . . . . Garrison Access . | . . . . . . . . . . . . . . . . . . . . . . . . . . . . . . . . Data Cores Recovered 1 | . . . . . . . . . . . . . . . . . . . 1 . . . . . . . . . . . . Used . | . . . . . . . . . . . . . . . . . . . . . . . . . . . . . . . . Hacking Detections 53 | . 1 . 4 . . 7 . 5 2 . 11 . . . . 1 . 1 4 2 . 3 2 . . . 4 5 1 . . Full Trace Events 4 | . . . 1 . . 1 . . . . 2 . . . . . . . . . . . . . . . . . . . . Feedback Events . | . . . . . . . . . . . . . . . . . . . . . . . . . . . . . . . . Feedback Blocked . | . . . . . . . . . . . . . . . . . . . . . . . . . . . . . . . . Robot Schematics Acquired . | . . . . . . . . . . . . . . . . . . . . . . . . . . . . . . . . Robots Built . | . . . . . . . . . . . . . . . . . . . . . . . . . . . . . . . . Matter . | . . . . . . . . . . . . . . . . . . . . . . . . . . . . . . . . Time . | . . . . . . . . . . . . . . . . . . . . . . . . . . . . . . . . Total Robot Build Rating . | . . . . . . . . . . . . . . . . . . . . . . . . . . . . . . . . Part Schematics Acquired 6 | . . . 3 . . 1 . . . . . . . . . . . . . . . . . . . . . 2 . . . Parts Built 1 | . . . . . . . . . . . . . . . . . . . . . . . . . . . 1 . . . . Matter 102 | . . . . . . . . . . . . . . . . . . . . . . . . . . . 102 . . . . Time 17 | . . . . . . . . . . . . . . . . . . . . . . . . . . . 17 . . . . Total Part Build Rating 1 | . . . . . . . . . . . . . . . . . . . . . . . . . . . 1 . . . . Parts Repaired . | . . . . . . . . . . . . . . . . . . . . . . . . . . . . . . . . Time . | . . . . . . . . . . . . . . . . . . . . . . . . . . . . . . . . Parts Recycled . | . . . . . . . . . . . . . . . . . . . . . . . . . . . . . . . . Recycled Matter . | . . . . . . . . . . . . . . . . . . . . . . . . . . . . . . . . Retrieved Matter . | . . . . . . . . . . . . . . . . . . . . . . . . . . . . . . . . Retrieved Components . | . . . . . . . . . . . . . . . . . . . . . . . . . . . . . . . . Parts Scanalyzed 3 | . . . 1 . . 1 . . . . . . . . . . . . . . . . . . . . . 1 . . . Part Schematics Acquired 3 | . . . 1 . . 1 . . . . . . . . . . . . . . . . . . . . . 1 . . . Parts Damaged 2 | . . . 1 . . 1 . . . . . . . . . . . . . . . . . . . . . . . . . Bothacking | -11 -10 -10 -9 -9 -9 -8 -8 -8 -7 -7 -6 -6 -6 -5 -5 -4 -4 -4 -4 -4 -4 -4 -3 -3 -2 -2 -2 -2 -1 -1 -1 ------------ Run | Scr Mat Min Mat Sto Gar Mat Gar Mat Fac Gar Fac Low Low Fac Gar Fac Gar Fac Ext Cet Arc Hub Res Gar Res Gar Res Tes Acc Gar Acc Used RIF Installer 8 | . . . . . 1 . 1 . . 1 . . . . 1 . 1 . . . . . . 1 . 1 . . . 1 . Command Fork 3 | . . . . . . . 1 . . . . . . . . . . . . . . . . 1 . 1 . . . . . Program Shield 1 | . . . . . . . . . . 1 . . . . . . . . . . . . . . . . . . . . . Autooverride 2 | . . . . . . . . . . . . . . . 1 . 1 . . . . . . . . . . . . . . Crosswire 1 | . . . . . . . . . . . . . . . . . . . . . . . . . . . . . . 1 . Robots Hacked 132 | . . . . . . . . . . . 8 . . . 2 . 12 . 11 2 2 2 . 7 . 14 19 6 . 19 28 Non-combat 15 | . . . . . . . . . . . 1 . . . . . . . 2 . 2 . . . . . 7 1 . . 2 Combat 117 | . . . . . . . . . . . 7 . . . 2 . 12 . 9 2 . 2 . 7 . 14 12 5 . 19 26 Autooverrided 38 | . . . . . . . . . . . . . . . . . 1 . 1 2 . . . 1 . 5 4 3 . 10 11 Robot Hacks Applied 109 | . . . . . . . . . . . 9 . . . 2 . 11 . 12 . 2 2 . 6 . 12 21 3 . 10 19 parse_system 2 | . . . . . . . . . . . 1 . . . . . . . . . . . . . . . . . . . 1 no_distress 3 | . . . . . . . . . . . 1 . . . . . . . . . 2 . . . . . . . . . . start_evac 3 | . . . . . . . . . . . . . . . . . . . . . . . . . . . 3 . . . . drop_inventory 1 | . . . . . . . . . . . . . . . . . . . . . . . . . . . 1 . . . . purge_threat 1 | . . . . . . . . . . . . . . . . . . . . . . . . . . . . . . . 1 find_terminals 1 | . . . . . . . . . . . . . . . . . . . . . . . . . . . 1 . . . . map_route 1 | . . . . . . . . . . . . . . . . . . . . . . . . . . . 1 . . . . link_fov 9 | . . . . . . . . . . . . . . . . . . . 1 . . . . . . . 6 1 . . 1 mark_system 1 | . . . . . . . . . . . . . . . . . . . . . . . . . . 1 . . . . . spike_heat 1 | . . . . . . . . . . . . . . . . . . . . . . 1 . . . . . . . . . overload_power 1 | . . . . . . . . . . . . . . . . . 1 . . . . . . . . . . . . . . disable_weapons 1 | . . . . . . . . . . . . . . . . . . . 1 . . . . . . . . . . . . reboot_system 6 | . . . . . . . . . . . 1 . . . 1 . . . . . . . . . . 2 1 . . 1 . go_dormant 2 | . . . . . . . . . . . . . . . . . . . . . . . . 1 . . . . . . 1 overwrite_iff 26 | . . . . . . . . . . . 3 . . . . . 5 . 7 . . . . . . 5 . . . 4 2 streamctrl_high 1 | . . . . . . . . . . . 1 . . . . . . . . . . . . . . . . . . . . formatsys_low 2 | . . . . . . . . . . . . . . . . . . . . . . . . . . . 1 . . . 1 formatsys_high 47 | . . . . . . . . . . . 2 . . . 1 . 5 . 3 . . 1 . 5 . 4 7 2 . 5 12 Relay Couplers Released 60 | . . . . . . . 3 . . 6 . . . . 8 . 8 . . . . . . 10 . 10 . . . 15 . Machine Destruction 60 | . . . . . . . 3 . . 6 . . . . 8 . 8 . . . . . . 10 . 10 . . . 15 . Attached 45 | . . . . . . . . . . . 4 . . 1 1 . 3 1 5 . . 1 . 3 . 5 7 1 . 6 7 Crosswired 11 | . . . . . . . . . . . . . . . . . . . . . . . . . . . . . . 11 . Robots Rewired 6 | . . . . . . . . . . . . . . . . . . . 6 . . . . . . . . . . . . Allies Hacked 2 | . . . . . . . . . . . . . . . . . . . . . . . . . . . 1 . . . 1 Hacks Repelled . | . . . . . . . . . . . . . . . . . . . . . . . . . . . . . . . . Allies | -11 -10 -10 -9 -9 -9 -8 -8 -8 -7 -7 -6 -6 -6 -5 -5 -4 -4 -4 -4 -4 -4 -4 -3 -3 -2 -2 -2 -2 -1 -1 -1 -------- Run | Scr Mat Min Mat Sto Gar Mat Gar Mat Fac Gar Fac Low Low Fac Gar Fac Gar Fac Ext Cet Arc Hub Res Gar Res Gar Res Tes Acc Gar Acc Total Allies 149 | . . . . 1 . . . . . . 8 . . . 1 . 11 . 20 2 . 1 . 7 . 18 16 7 . 20 37 Largest Group 12 | . . . . 1 . . . . . . 2 . . . 1 . 3 1 12 11 . 1 . 6 5 5 5 4 . 4 10 Highest-Rated Group 454 | . . . . 99 . . . . . . 73 . . . 41 . 94 12 454 442 . 56 . 317 202 213 282 232 . 192 438 Highest-Rated Ally 115 | . . . . 99 . . . . . . 41 . . . 41 . 47 12 56 56 . 56 . 115 56 69 69 58 . 64 64 Total Orders 33 | . . . . . . . . . . . 3 . . . 4 . . 3 3 . . . . . . . . . 3 5 12 STAY 2 | . . . . . . . . . . . 1 . . . . . . . . . . . . . . . . . . 1 . ROAM 2 | . . . . . . . . . . . 1 . . . . . . . 1 . . . . . . . . . . . . FOLLOW 1 | . . . . . . . . . . . . . . . . . . . . . . . . . . . . . . 1 . AID 1 | . . . . . . . . . . . 1 . . . . . . . . . . . . . . . . . . . . EXPLORE 15 | . . . . . . . . . . . . . . . 2 . . 1 2 . . . . . . . . . 1 1 8 RETURN 12 | . . . . . . . . . . . . . . . 2 . . 2 . . . . . . . . . . 2 2 4 Ally Attacks 773 | . . . . 23 . . . . . . 33 . . . 2 . 40 4 51 82 . 8 . 43 . 73 107 32 . 82 193 Total Damage 20532 | . . . . 614 . . . . . . 1019 . . . 56 . 363 29 1514 1777 . 420 . 932 . 2078 2933 792 . 2391 5614 Kills 106 | . . . . 11 . . . . . . 6 . . . 2 . 5 . 9 10 . 1 . 6 . 6 13 2 . 9 26 Allies Corrupted 5 | . . . . . . . . . . . . . . . . . . . . . . . . . . . 2 . . . 3 Allies Melted . | . . . . . . . . . . . . . . . . . . . . . . . . . . . . . . . . Intel | -11 -10 -10 -9 -9 -9 -8 -8 -8 -7 -7 -6 -6 -6 -5 -5 -4 -4 -4 -4 -4 -4 -4 -3 -3 -2 -2 -2 -2 -1 -1 -1 ------- Run | Scr Mat Min Mat Sto Gar Mat Gar Mat Fac Gar Fac Low Low Fac Gar Fac Gar Fac Ext Cet Arc Hub Res Gar Res Gar Res Tes Acc Gar Acc Robot Analysis Total . | . . . . . . . . . . . . . . . . . . . . . . . . . . . . . . . . Derelict Logs Recovered 2 | . . 1 . . . . . . . . . 1 . . . . . . . . . . . . . . . . . . . Drone Launches 18 | . . . . . . . . . . . . . . . 2 . . 2 2 . . . . . . . . . 2 2 8 Drone Recoveries 12 | . . . . . . . . . . . . . . . 2 . . 2 . . . . . . . . . . 2 2 4 Exploration | -11 -10 -10 -9 -9 -9 -8 -8 -8 -7 -7 -6 -6 -6 -5 -5 -4 -4 -4 -4 -4 -4 -4 -3 -3 -2 -2 -2 -2 -1 -1 -1 ------------- Run | Scr Mat Min Mat Sto Gar Mat Gar Mat Fac Gar Fac Low Low Fac Gar Fac Gar Fac Ext Cet Arc Hub Res Gar Res Gar Res Tes Acc Gar Acc Turns Passed 25710 | 108 161 564 464 347 367 1800 775 578 250 750 1947 1069 909 89 1126 93 1600 252 913 642 1052 731 320 486 115 895 2402 1022 69 1481 2333 Spaces Moved 11344 | 69 83 293 202 171 180 768 387 269 121 361 773 499 442 32 432 39 756 110 383 269 227 299 175 228 61 424 981 538 34 743 995 Core 28 | 24 . . . . . . . . . . . . . . . . . . . . . . . . . . . . . . 4 Treads 8441 | 45 83 293 202 171 180 758 . 94 121 361 773 499 442 32 138 20 314 110 271 252 227 299 175 228 61 424 981 1 . . 886 Legs 2739 | . . . . . . . 387 175 . . . . . . 294 19 442 . 3 . . . . . . . . 537 34 743 105 Wheels 126 | . . . . . . . . . . . . . . . . . . . 109 17 . . . . . . . . . . . Hover 10 | . . . . . . 10 . . . . . . . . . . . . . . . . . . . . . . . . . Flight . | . . . . . . . . . . . . . . . . . . . . . . . . . . . . . . . . Fastest Speed 50 | 50 160 160 160 160 160 160 157 152 172 172 172 180 206 206 150 180 150 183 170 160 160 180 160 172 172 172 150 110 110 120 50 Average Speed 172 | 130 160 160 160 160 160 171 157 161 172 172 174 203 206 206 180 182 183 183 183 179 177 180 173 172 172 172 166 140 115 144 183 Slowest Speed 360 | 200 160 160 160 160 160 230 215 176 172 172 180 206 206 206 206 186 360 183 330 185 180 180 180 172 172 172 220 240 135 180 210 Overloaded Moves . | . . . . . . . . . . . . . . . . . . . . . . . . . . . . . . . . Propulsion Burnouts . | . . . . . . . . . . . . . . . . . . . . . . . . . . . . . . . . Robots Hopped 2 | . . . . . . . . . . . . . . . . . 2 . . . . . . . . . . . . . . Cave-ins Triggered . | . . . . . . . . . . . . . . . . . . . . . . . . . . . . . . . . Exploration Rate (%) 40 | 5 24 48 30 29 42 81 73 31 3 53 25 63 49 2 50 1 80 6 63 76 92 42 6 49 1 67 31 56 3 79 41 Regions Visited 31 Branch Regions 9 Pre-discovered Areas . | . . . . . . . . . . . . . . . . . . . . . . . . . . . . . . . . Known Exits Taken 20 | . . . 1 1 . 1 . 1 1 . 1 1 1 1 . 1 . 1 1 1 1 1 1 . 1 . 1 1 1 . . Unknown Exits Taken 3 | 1 1 1 . . . . . . . . . . . . . . . . . . . . . . . . . . . . . Scrap Searched 3 | . . . . . . . . . . . . 2 1 . . . . . . . . . . . . . . . . . . Spaces Dug 151 | . . . 3 . . 10 . . . 25 25 . . 4 1 . . 5 18 . 1 10 1 . . . 33 8 . . 7 Terrain Destroyed 804 | . . 9 3 . 2 57 26 . . 84 32 . . 4 24 . 1 5 177 97 12 174 1 4 . . 34 39 . 9 10 Melee 112 | . . . 3 . . 10 . . . . 25 . . 4 1 . . 5 4 . 1 10 1 . . . 33 8 . . 7 Projectile 106 | . . . . . . 2 . . . . . . . . 3 . 1 . 1 25 11 15 . 4 . . 1 31 . 9 3 AOE 586 | . . 9 . . 2 45 26 . . 84 7 . . . 20 . . . 172 72 . 149 . . . . . . . . . Terrain Rammed . | . . . . . . . . . . . . . . . . . . . . . . . . . . . . . . . . Walls Destroyed . | . . . . . . . . . . . . . . . . . . . . . . . . . . . . . . . . Machines Disabled . | . . . . . . . . . . . . . . . . . . . . . . . . . . . . . . . . Actions | -11 -10 -10 -9 -9 -9 -8 -8 -8 -7 -7 -6 -6 -6 -5 -5 -4 -4 -4 -4 -4 -4 -4 -3 -3 -2 -2 -2 -2 -1 -1 -1 --------- Run | Scr Mat Min Mat Sto Gar Mat Gar Mat Fac Gar Fac Low Low Fac Gar Fac Gar Fac Ext Cet Arc Hub Res Gar Res Gar Res Tes Acc Gar Acc Total 15743 | 85 107 352 296 216 213 1084 487 374 160 446 1242 536 441 47 675 60 927 149 529 373 824 418 191 301 71 541 1474 718 64 1036 1306 Wait 1678 | 4 14 25 37 7 5 70 13 37 17 9 296 4 . 8 72 3 22 26 17 27 526 54 1 10 2 21 135 62 19 75 60 Move 11300 | 68 82 292 201 170 178 767 385 268 120 359 772 498 441 31 430 38 750 109 382 268 226 298 174 226 60 422 980 537 33 741 994 Hop 2 | . . . . . . . . . . . . . . . . . 2 . . . . . . . . . . . . . . Pick Up 412 | 7 3 4 8 5 1 58 8 15 11 11 23 5 . . 28 5 19 1 18 11 14 5 1 15 3 13 34 16 2 47 21 Fast Attach 113 | 5 2 3 5 2 . 13 2 2 . . 4 2 . . 6 . 8 . 4 7 1 4 1 . . 4 10 6 . 9 13 Attach 217 | 1 . . 2 3 . 15 4 5 2 3 11 1 . 2 13 3 7 . 13 3 2 1 6 4 2 6 27 13 9 29 30 Detach 45 | . . . . . . 3 1 1 . . . . . . 3 2 . . 3 1 . . 2 . . 1 3 5 1 6 13 Swap 425 | . 1 6 6 4 4 19 11 5 2 20 36 9 . 1 23 4 16 7 27 18 13 11 3 11 2 12 69 15 . 19 51 Drop 362 | . 3 4 10 9 1 39 14 12 3 9 19 6 . . 28 4 27 1 7 15 14 9 2 9 2 13 39 12 . 27 24 Fire 702 | . 2 18 19 14 24 59 34 19 3 20 18 . . 1 51 . 23 . 47 23 17 23 . 15 . 33 62 26 . 61 90 Melee 351 | . . . 4 2 . 38 5 9 . 9 59 11 . 4 6 1 22 5 8 . 11 12 1 . . 2 111 21 . . 10 Ram . | . . . . . . . . . . . . . . . . . . . . . . . . . . . . . . . . Kick 3 | . . . . . . . . . . . . . . . . . . . . . . . . . . . . 2 . 1 . Crush 12 | . . . 4 . . 3 . 1 . . 1 . . . . . . . 2 . . . . . . . 1 . . . . Escape Stasis 107 | . . . . . . . 10 . 2 6 2 . . . 15 . 31 . . . . . . 8 . 13 2 . . 18 . Rewire 14 | . . . . . . . . . . . 1 . . . . . . . 1 . . 1 . 3 . 1 1 3 . 3 . Trap . | . . . . . . . . . . . . . . . . . . . . . . . . . . . . . . . . Miscellaneous . | . . . . . . . . . . . . . . . . . . . . . . . . . . . . . . . . Route ------- -11/Scrapyard -10/Materials -10/Mines (discovered 2 exits: *Mat x2) -9/Materials (discovered 4 exits: *Min x2 / *Sto x2) -9/Storage -9/Garrison -8/Materials (discovered 3 exits: *Fac x2 / Gar) -8/Garrison (discovered 3 exits: *Mat x3) -8/Materials (discovered 3 exits: *Fac x3) -7/Factory (discovered 3 exits: Low x2 / Gar) -7/Garrison (discovered 2 exits: *Fac x2) -6/Factory (discovered 3 exits: *Fac / *Low x2) -6/Lower Caves -6/Lower Caves -5/Factory -5/Garrison -4/Factory -4/Garrison (discovered 3 exits: *Fac x3) -4/Factory (discovered 2 exits: Res / *Ext) -4/Extension (discovered 2 exits: *Res / *Cet) -4/Cetus (discovered 3 exits: *Res x2 / *Arc) -4/Archives (discovered 3 exits: *Res / *Hub x2) -4/Hub_04(d) (discovered 3 exits: *Res x3) -3/Research -3/Garrison -2/Research -2/Garrison (discovered 3 exits: *Res x3) -2/Research (discovered 2 exits: *Tes x2) -2/Testing -1/Access -1/Garrison (discovered 2 exits: *Acc x2) -1/Access To Epsilon Eridani History --------- Turn | Location | Event 5 | -11/Scrapyard | Discovered new exit (range 15) 109 | -11/Scrapyard | Entered Materials 235 | -10/Materials | Discovered new exit (range 16) 270 | -10/Materials | Entered Mines 318 | -10/Mines | Build established: Mutant 323 | -10/Mines | Discovered new exit (range 8) 504 | -10/Mines | Learned Materials terminal intel 517 | -10/Mines | Found a damaged Exp. Sensor Array with a note attached 521 | -10/Mines | Found Prototype Device 521 | -10/Mines | Identified Exp. Sensor Array 589 | -10/Mines | Discovered new exit (range 11) 834 | -10/Mines | Entered Materials 834 | -9/Materials | Evolved 2 slots: Utility x2 835 | -9/Materials | Loaded intel: 12 terminal locations 1121 | -9/Materials | Identified exit to Mines 1121 | -9/Materials | Identified exit to Storage 1298 | -9/Materials | Entered Storage 1308 | -9/Storage | Met 01-MTF 1502 | -9/Storage | Garrison activated, responded to threat 1642 | -9/Storage | Identified exit to Garrison 1645 | -9/Storage | Entered Garrison 1645 | -9/Garrison | Accompanied by 1 ally (01-MTF) 1650 | -9/Garrison | 01-MTF left 1686 | -9/Garrison | Triggered checkpoint 1728 | -9/Garrison | Triggered checkpoint 1877 | -9/Garrison | Triggered checkpoint 1953 | -9/Garrison | Discovered new exit (range 8) 2004 | -9/Garrison | Installed Relay Interface Framework 2012 | -9/Garrison | Entered Materials 2012 | -8/Materials | Evolved 2 slots: Propulsion x2 2565 | -8/Materials | Lost 4 parts (1p1n2w) 2799 | -8/Materials | Build established: Scavenger-Mutant 2838 | -8/Materials | Discovered new exit (range 16) 3150 | -8/Materials | Build established: Hauler-Mutant 3416 | -8/Materials | Discovered new exit (range 7) 3726 | -8/Materials | Core integrity fell below 50% 3790 | -8/Materials | Identified exit to Garrison 3812 | -8/Materials | Entered Garrison 3892 | -8/Garrison | Triggered checkpoint 3924 | -8/Garrison | Triggered checkpoint 4020 | -8/Garrison | Destroyed 7 combat bots 4038 | -8/Garrison | Triggered checkpoint 4107 | -8/Garrison | Garrison Relay disabled 4142 | -8/Garrison | Discovered new exit (range 13) 4349 | -8/Garrison | Discovered new exit (range 13) 4532 | -8/Garrison | Discovered new exit (range 8) 4579 | -8/Garrison | Expanded RIF knowledge: Command Fork 4587 | -8/Garrison | Entered Materials 4971 | -8/Materials | Lost 4 parts (1p2n1w) 5048 | -8/Materials | Identified exit to Factory 5165 | -8/Materials | Entered Factory 5165 | -7/Factory | Evolved 2 slots: Utility x2 5262 | -7/Factory | Identified exit to Lower Caves 5413 | -7/Factory | Identified exit to Garrison 5415 | -7/Factory | Entered Garrison 5478 | -7/Garrison | Triggered checkpoint 5527 | -7/Garrison | Garrison Relay disabled 5710 | -7/Garrison | Triggered checkpoint 5791 | -7/Garrison | Discovered new exit (range 9) 5814 | -7/Garrison | Build established: Bothacker-Mutant 5862 | -7/Garrison | Triggered checkpoint 5917 | -7/Garrison | Garrison Relay disabled 6121 | -7/Garrison | Discovered new exit (range 13) 6153 | -7/Garrison | Expanded RIF knowledge: Program Shield 6160 | -7/Garrison | Identified exit to Factory 6165 | -7/Garrison | Entered Factory 6165 | -6/Factory | Evolved 2 slots: Utility x2 6498 | -6/Factory | Identified exit to Lower Caves 6536 | -6/Factory | Build established: Bothacker-Assassin 7034 | -6/Factory | Found Prototype Processor 7034 | -6/Factory | Identified Exp. Signal Interpreter 7199 | -6/Factory | Build established: Bothacker-Mutant 7627 | -6/Factory | Discovered new exit (range 15) 8112 | -6/Factory | Entered Lower Caves 8190 | -6/Lower Caves | Attacked by a delusional Derelict stockpiling parts 8529 | -6/Lower Caves | Build established: Bothacker-Assassin 8925 | -6/Lower Caves | Learned Factory terminal intel 8965 | -6/Lower Caves | Encountered a Warlord checkpoint 9102 | -6/Lower Caves | Discovered new exit (range 12) 9166 | -6/Lower Caves | Identified exit to Lower Caves 9181 | -6/Lower Caves | Entered another Lower Caves area 9546 | -6/Lower Caves | Discovered new exit (range 6) 9554 | -6/Lower Caves | Identified exit to Factory 10090 | -6/Lower Caves | Entered Factory 10090 | -5/Factory | Evolved 2 slots: Weapon x2 10091 | -5/Factory | Loaded intel: 20 terminal locations 10177 | -5/Factory | Identified exit to Garrison 10179 | -5/Factory | Entered Garrison 10196 | -5/Garrison | Expanded RIF knowledge: Autooverride 10469 | -5/Garrison | Spotted B-75 Beast 10523 | -5/Garrison | Build established: Scavenger-Gunner 10545 | -5/Garrison | Garrison Relay disabled 10548 | -5/Garrison | Triggered checkpoint 10793 | -5/Garrison | Found Fusion Bomb Launcher 10796 | -5/Garrison | Found Fusion Bomb Launcher 10835 | -5/Garrison | Found Fusion Bomb Launcher 11039 | -5/Garrison | Triggered checkpoint 11043 | -5/Garrison | Destroyed B-75 Beast 11043 | -5/Garrison | Triggered checkpoint 11114 | -5/Garrison | Discovered new exit (range 8) 11127 | -5/Garrison | Identified exit to Factory 11190 | -5/Garrison | Triggered checkpoint 11220 | -5/Garrison | Garrison Relay disabled 11258 | -5/Garrison | Triggered checkpoint 11305 | -5/Garrison | Entered Factory 11305 | -4/Factory | Evolved 2 slots: Utility x2 11390 | -4/Factory | Identified exit to Garrison 11398 | -4/Factory | Entered Garrison 11442 | -4/Garrison | Triggered checkpoint 11526 | -4/Garrison | Garrison Relay disabled 11690 | -4/Garrison | Build established: Bothacker-Mutant 11744 | -4/Garrison | Triggered checkpoint 11765 | -4/Garrison | Triggered checkpoint 11765 | -4/Garrison | Triggered checkpoint 11901 | -4/Garrison | Discovered new exit (range 9) 11917 | -4/Garrison | Identified exit to Factory 11982 | -4/Garrison | Triggered checkpoint 12037 | -4/Garrison | Garrison Relay disabled 12246 | -4/Garrison | Discovered exit to Factory (range 12) 12276 | -4/Garrison | Expanded RIF knowledge: Autooverride 12346 | -4/Garrison | Build established: Botlord-Mutant 12926 | -4/Garrison | Discovered exit to Factory (range 15) 12968 | -4/Garrison | Triggered checkpoint 12998 | -4/Garrison | Entered Factory 12998 | -4/Factory | Accompanied by 1 ally 13115 | -4/Factory | Discovered new exit (range 15) 13203 | -4/Factory | Discovered new exit (range 16) 13248 | -4/Factory | Identified exit to Extension 13250 | -4/Factory | Entered Extension 13449 | -4/Extension | Spotted B-86 Titan 13467 | -4/Extension | Spotted B-86 Titan 13473 | -4/Extension | Destroyed B-86 Titan 13518 | -4/Extension | Destroyed B-86 Titan 13525 | -4/Extension | Disrupted transfer network 13547 | -4/Extension | Lost 9 parts (1p2n2u4w) 14065 | -4/Extension | Identified exit to Cetus 14114 | -4/Extension | Discovered new exit (range 10) 14141 | -4/Extension | Identified exit to Research 14163 | -4/Extension | Entered Cetus 14163 | -4/Cetus | Accompanied by 11 allies 14188 | -4/Cetus | Spotted Cetus Guard 14188 | -4/Cetus | Spotted Cetus Guard 14188 | -4/Cetus | Allies destroyed Cetus Guard 14189 | -4/Cetus | Spotted Cetus Guard 14193 | -4/Cetus | Spotted Cetus Guard 14197 | -4/Cetus | Destroyed Cetus Guard 14197 | -4/Cetus | Destroyed Cetus Guard 14207 | -4/Cetus | Allies destroyed Cetus Guard 14292 | -4/Cetus | Discovered exit to Research (range 16) 14421 | -4/Cetus | Build established: Botlord-Skirmisher 14501 | -4/Cetus | Discovered new exit (range 16) 14544 | -4/Cetus | Identified exit to Archives 14624 | -4/Cetus | Spotted Cetus Guard 14625 | -4/Cetus | Spotted Cetus Guard 14636 | -4/Cetus | Destroyed Cetus Guard 14656 | -4/Cetus | Destroyed Cetus Guard 14682 | -4/Cetus | Spotted Cetus Guard 14689 | -4/Cetus | Destroyed Cetus Guard 14720 | -4/Cetus | Discovered exit to Research (range 16) 14731 | -4/Cetus | Met Revision 17 14805 | -4/Cetus | Entered Archives 14979 | -4/Archives | Unable to access archive contents 14986 | -4/Archives | Discovered exit to Research (range 14) 15009 | -4/Archives | Unable to access archive contents 15021 | -4/Archives | Discovered new exit (range 15) 15074 | -4/Archives | Identified exit to Hub_04(d) 15112 | -4/Archives | Discovered exit to Hub_04(d) (range 14) 15167 | -4/Archives | Unable to access archive contents 15495 | -4/Archives | Build established: Bothacker-Mutant 15857 | -4/Archives | Entered Hub_04(d) 16030 | -4/Hub_04(d) | Found Prototype Processor 16030 | -4/Hub_04(d) | Identified Exp. Melee Analysis Suite 16235 | -4/Hub_04(d) | Discovered exit to Research (range 3) 16390 | -4/Hub_04(d) | Discovered exit to Research (range 16) 16408 | -4/Hub_04(d) | Discovered exit to Research (range 12) 16527 | -4/Hub_04(d) | Garrison activated, responded to threat 16577 | -4/Hub_04(d) | Network Hub disabled 16578 | -4/Hub_04(d) | Spotted Lightning 16580 | -4/Hub_04(d) | Spotted Lightning 16581 | -4/Hub_04(d) | Spotted Lightning 16582 | -4/Hub_04(d) | Spotted Lightning 16583 | -4/Hub_04(d) | Spotted Lightning 16584 | -4/Hub_04(d) | Spotted Lightning 16584 | -4/Hub_04(d) | Spotted Lightning 16585 | -4/Hub_04(d) | Spotted Lightning 16588 | -4/Hub_04(d) | Spotted Lightning 16588 | -4/Hub_04(d) | Spotted Lightning 16588 | -4/Hub_04(d) | Spotted Lightning 16588 | -4/Hub_04(d) | Entered Research 16588 | -3/Research | Evolved 2 slots: Utility x2 16907 | -3/Research | Identified exit to Garrison 16908 | -3/Research | Entered Garrison 16958 | -3/Garrison | Triggered checkpoint 17005 | -3/Garrison | Garrison Relay disabled 17088 | -3/Garrison | Triggered checkpoint 17091 | -3/Garrison | Spotted B-86 Titan 17094 | -3/Garrison | Assimilated Titan 8a with formatsys_high 17178 | -3/Garrison | Discovered new exit (range 14) 17207 | -3/Garrison | Identified exit to Research 17219 | -3/Garrison | Expanded RIF knowledge: Command Fork 17258 | -3/Garrison | Triggered checkpoint 17304 | -3/Garrison | Garrison Relay disabled 17394 | -3/Garrison | Entered Research 17394 | -2/Research | Accompanied by 5 allies 17394 | -2/Research | Evolved 2 slots: Utility x2 17492 | -2/Research | Identified exit to Garrison 17509 | -2/Research | Entered Garrison 17509 | -2/Garrison | Accompanied by 5 allies 17518 | -2/Garrison | Expanded RIF knowledge: Command Fork 17548 | -2/Garrison | Triggered checkpoint 17575 | -2/Garrison | Garrison Relay disabled 17660 | -2/Garrison | Spotted B-90 Cyclops 17666 | -2/Garrison | Triggered checkpoint 17667 | -2/Garrison | Triggered checkpoint 17667 | -2/Garrison | Triggered checkpoint 17688 | -2/Garrison | Triggered checkpoint 17702 | -2/Garrison | Destroyed B-90 Cyclops 17924 | -2/Garrison | Triggered checkpoint 17946 | -2/Garrison | Garrison Relay disabled 18074 | -2/Garrison | Discovered new exit (range 7) 18084 | -2/Garrison | Identified exit to Research 18192 | -2/Garrison | Build established: Botlord-Mutant 18195 | -2/Garrison | Discovered exit to Research (range 10) 18346 | -2/Garrison | Discovered exit to Research (range 8) 18404 | -2/Garrison | Entered Research 18404 | -2/Research | Accompanied by 2 allies 19575 | -2/Research | Discovered new exit (range 9) 19616 | -2/Research | Identified exit to Testing 19675 | -2/Research | Found Prototype Device 19675 | -2/Research | Identified Exp. Thermal Defense Suite 19746 | -2/Research | System corruption reached 10% 19792 | -2/Research | Lost 3 parts (1p1n1u) 19848 | -2/Research | Lost 5 parts (1p1n2u1w) 20532 | -2/Research | Fabricated Hcp. Storage Unit (x1) 20601 | -2/Research | Discovered exit to Testing (range 11) 20776 | -2/Research | Core integrity fell below 50% 20806 | -2/Research | Entered Testing 20806 | -2/Testing | Accompanied by 1 ally 20886 | -2/Testing | Lost 8 parts (1p1n4u2w) 21266 | -2/Testing | Found Prototype Leg 21266 | -2/Testing | Identified Myomer Exoskeleton 21503 | -2/Testing | Identified exit to Access 21714 | -2/Testing | Found Portable AFG 21789 | -2/Testing | Scanned by Researcher 21812 | -2/Testing | Core integrity fell below 20% 21828 | -2/Testing | Entered Access 21828 | -1/Access | Evolved 2 slots: Weapon x2 21858 | -1/Access | Lost 5 parts (1p4w) 21895 | -1/Access | Identified exit to Garrison 21897 | -1/Access | Entered Garrison 21904 | -1/Garrison | Expanded RIF knowledge: Crosswire 21966 | -1/Garrison | Triggered checkpoint 22059 | -1/Garrison | Garrison Relay disabled 22154 | -1/Garrison | Build established: Botlord-Executioner 22162 | -1/Garrison | Spotted B-99 Colossus 22212 | -1/Garrison | Lost 4 parts (2u2w) 22314 | -1/Garrison | Triggered checkpoint 22316 | -1/Garrison | Lost 17 parts (1p3n5u8w) 22347 | -1/Garrison | Discovered new exit (range 8) 22356 | -1/Garrison | Identified exit to Access 22388 | -1/Garrison | Triggered checkpoint 22418 | -1/Garrison | Garrison Relay disabled 22476 | -1/Garrison | Build established: Botlord-Mutant 22640 | -1/Garrison | Allies destroyed B-99 Colossus 22644 | -1/Garrison | Triggered checkpoint 22645 | -1/Garrison | Triggered checkpoint 22713 | -1/Garrison | Found Hvy. Reflective Plating 22873 | -1/Garrison | Discovered exit to Access (range 9) 22920 | -1/Garrison | Triggered checkpoint 22950 | -1/Garrison | Garrison Relay disabled 23018 | -1/Garrison | Build established: Botlord-Executioner 23122 | -1/Garrison | Triggered checkpoint 23189 | -1/Garrison | Garrison Relay disabled 23378 | -1/Garrison | Entered Access 23460 | -1/Access | System corruption reached 10% 23656 | -1/Access | First assault squad dispatched 23914 | -1/Access | Found Exp. Signal Interpreter 23993 | -1/Access | Garrison activated, responded to threat 25062 | -1/Access | Build established: Botlord-Mutant 25244 | -1/Access | Found Prototype Launcher 25245 | -1/Access | Identified Enh. Gamma Bomb Array 25464 | -1/Access | Build established: Botlord-Executioner 25550 | -1/Access | Spotted B-99 Colossus 25558 | -1/Access | Spotted B-99 Colossus 25608 | -1/Access | Lost 9 parts (1p1n7w) 25651 | -1/Access | Core integrity fell below 50% 25680 | -1/Access | System corruption reached 30% 25708 | -1/Access | Core integrity fell below 20% 25708 | -1/Access | Discovered new exit (range 5) 25710 | -1/Access | Released all parts (9) 25711 | *** | Escaped! Last Messages --------------- 25707_ Slug penetrates Sealed Heavy Doors. 25707_ Penetrated by Slug. 25707_ Slug penetrates Sealed Heavy Doors. 25707_ Slug penetrates Main Access Shell. 25707_ Slug penetrates Reinforced Barrier. 25708_ Main Access Shell breached. 25708_ EXIT=FOUND 25709_ Penetrated by Slug. 25709_ Slug penetrates Main Access Shell. 25709_ Slug penetrates Sealed Heavy Doors. 25710_ Released Exp. Coolant Injector. 25710_ Released Adv. Target Analyzer. 25710_ Released Exp. Signal Interpreter. 25710_ Released Adv. Targeting Computer. 25710_ Released Hcp. Storage Unit. 25710_ Released Exp. Energy Well. 25710_ Released Adv. Targeting Computer. 25710_ Released Enh. Nova Cannon. 25710_ Extracted 37 matter. [Achievement: One Last FU] Map ----- +----------------------------------------------------+ | ?????????????????????????????????????????????????? | | ?????????????????????????????????????????????????? | | #????????????????????????????????????????????????? | | ##???????????????????????????????????????????????? | | #"########???????????????????????????????????????? | | # #???????????????????????????????????????? | | # ##??????????????????????????????????????? | | # #??????????????????????????????????????? | | # ##?????????????????????????????????????? | | #?????????????????????????????????????? | | ! ##?????????????????????????????????????? | | #?????????????????????????????????????? | | =% # #?????????????????????????????????????? | | = %= # #?????????????????????????????????????? | | # % #??????????????????????????????????????? | | # [ #??????????????????????????????????????? | | # % ##??????????????????????????????????????? | | # ! ##??????????????????????????????????????? | | # "##?????????????????????????????????????? | | # "" " #?????????????????????????????????????? | | + "" "########??##########"??????????????????? | | # # """"!! "??????????????????? | | # # ]!!! "??????????????????? | | #"""###### """"Q"""""" "??????????????????? | | ^ "??"!!!! "?????????????????????? | | ^ "??"!"!"@ "?????????????????????? | | "??"!" "" "?????????????????????? | | ^ "??"!" "?????????????????????? | | ######+### "??" """"""?????????????????????? | | ?????????# "??" ??????????????????????????? | | ?????????# "??" ??????????????????????????? | | ?????????#########??###??????????????????????????? | | ?????????????????????????????????????????????????? | | ?????????????????????????????????????????????????? | | ?????????????????????????????????????????????????? | | ?????????????????????????????????????????????????? | | ?????????????????????????????????????????????????? | | ?????????????????????????????????????????????????? | | ?????????????????????????????????????????????????? | | ?????????????????????????????????????????????????? | | ?????????????????????????????????????????????????? | | ?????????????????????????????????????????????????? | | ?????????????????????????????????????????????????? | | ?????????????????????????????????????????????????? | | #????????????????????????????????????????????????? | | ?????????????????????????????????????????????????? | | ?????????????????????????????????????????????????? | | ?????????????????????????????????????????????????? | | ?????????????????????????????????????????????????? | | ?????????????????????????????????????????????????? | +----------------------------------------------------+ Best States ------------- Heat Dissipation 90 Coolant Potential 120 Energy Generation 31 Energy Capacity 2350 Matter Stores 477 Matter Capacity 500 Sight Range 16 Robot Scan Range 30 Terrain Scan Range 20 Terrain Scan Density 85 Jamming Range 12 Power Amplification 30 EM Shielding 4 Armor Coverage 750 Resistance: KI 30 Resistance: TH 25 Core Shielding 30 Melee Speed Boost 20 Phase Shifting 10 Evasion (%) 50 Targeting Accuracy 16 Melee Accuracy 8 Target Analysis 8 Recoil Reduction 4 Matter Filtering 30 Offensive Hacking 24 Defensive Hacking 24 Relay Coupler Types 82 Relay Coupler Value 6 Item Schematics ----------------- Exp. Sensor Array | -9/Materials | Scanalyzed Hcp. Storage Unit | -9/Materials | Hacked Imp. Signal Interpreter | -9/Materials | Hacked Adv. Signal Interpreter | -8/Materials | Scanalyzed KE Penetrator | -2/Testing | Scanalyzed Lgt. Regenerative Plating | -2/Testing | Hacked Robot Schematics ------------------ None Fabricated ------------ Hcp. Storage Unit | x1 | -2/Research Alien Tech Used ----------------- None Achievements -------------- Beloved Close Call Factory Defaults Generalissimo One Last FU Prolific Hacker Pwned Revising The Future Challenges ------------ None Game ------ Seed MatterSpikedWand Manual? 0 Play Time 07:17:03 Cumulative 54.3 hours Start 2020.12.25 @ 01:17:17 End 2020.12.26 @ 01:49:14 Sessions 6 Manual Loads 0 Difficulty Rogue Special Mode None Game No. 12 Rogue 12 Adventurer 0 Explorer 0 Win Type 0 Total 2 Types 2/0/0/0/0/0/0/0/0 Lore% 23 Gallery% 47 Achievement% 34 Wizard Run 0 Options --------- ASCII 0 Keyboard 0 Movement Numpad Keybinds 0 Fullscreen 1 Font 18/TerminusBold Map View 76x50 Tactical HUD 1 Map Filters NONE Filters NONE Steam 1 RUN: 7daedb7d-4040-47bd-8817-30b6bd8d253d